[Event "2nd Serbia Open Masters 2022"]
[Site "Novi Sad"]
[Date "2022.07.01"]
[Round "4.18"]
[White "Kushagra Mohan"]
[Black "Arjun Kalyan"]
[Result "1-0"]
[ECO "B69"]
[WhiteElo "2343"]
[BlackElo "2477"]
[Annotator "TA"]
[PlyCount "111"]
[EventDate "2022.06.28"]
[EventType "swiss"]
[EventCountry "SRB"]
[SourceTitle "playchess.com"]
[Source "ChessBase"]
[SourceQuality "1"]
[TimeControl "40/5400+30:900+30"]

{[%evp 25,111,46,58,20,27,39,91,106,96,70,141,139,113,48,44,61,83,51,67,48,48,48,63,34,43,39,62,59,59,62,55,62,66,27,64,47,341,325,361,337,361,379,345,366,370,378,370,363,352,323,284,301,1212,1124,422,0,388,388,562,551,545,521,745,736,806,806,789,820,867,865,1714,687,29981,29982,29982,29983,29983,29984,29984,29985,29985,29986,29990,29991,29991,29987,29987,29987]} 1. e4 {[%emt 0:00:13]} c5 {[%emt 0:00:07]} 2. Nf3 {[%emt 0:00:24]} d6 {[%emt 0:00:09]} 3. d4 {[%emt 0:00:05]} cxd4 {[%emt 0:00:05]} 4. Nxd4 {[%emt 0:00:02]} Nf6 {[%emt 0:00:06]} 5. Nc3 {[%emt 0:00:02]} Nc6 {[%emt 0:00:07]} 6. Bg5 {[%emt 0:00:04]} e6 {[%emt 0:00:09]} 7. Qd2 {[%emt 0:00:03]} a6 {[%emt 0:00:07]} 8. O-O-O {[%emt 0:00:04]} Bd7 {[%emt 0:00:09]} 9. f4 {[%emt 0:00:04][%cal Bf2f4,Bf4f5][%mdl 32]} Be7 {[%emt 0:00:09]} 10. Nf3 {[%emt 0:00:27]} b5 {[%emt 0:00:06]} 11. Bxf6 {[%emt 0:00:09]} gxf6 {[%emt 0:00:05]} 12. f5 {[%emt 0:00:14]} Qb6 {[%emt 0:00:27]} 13. Kb1 {[%emt 0:00:04]} O-O-O {[%emt 0:00:19]} 14. Ne2 {[%emt 0:00:23] B69: Sicilian: Richter-Rauzer: 7...a6 8 0-0-0 Bd7 9 f4 Be7 10 Nf3 b5 11 Bxf6.} (14. g3 $5 {[%cal Rf1h3]}) 14... Kb8 {[%emt 0:03:18]} 15. Nf4 {[%emt 0:00:17] [#]} h5 $146 {[%emt 0:10:18]} (15... Bc8 $14) ({Predecessor:} 15... Bc8 16. fxe6 fxe6 17. c3 d5 18. exd5 e5 19. Nh5 Be6 20. Bd3 Bxd5 21. Qe2 b4 {½-½ (33) Huschenbeth,N (2549)-Demchenko,A (2672) Batumi 2018}) 16. fxe6 {[%emt 0:03:13] White is better.} fxe6 {[%emt 0:00:17]} 17. Ng6 {[%emt 0:00:36]} Rh7 {[%emt 0:04:38]} (17... Rhg8 $14 18. Nxe7 Nxe7) 18. Nxe7 $16 {[%emt 0:03:24] White is more active.} Nxe7 {[%emt 0:04:53] [#]} 19. Qxd6+ {[%emt 0:05:16]} ({White should try} 19. Qf4 $1 $16) 19... Qxd6 $14 {[%emt 0:00:04]} 20. Rxd6 {[%emt 0:00:05]} Kc7 {[%emt 0:00:33]} 21. Rd1 {[%emt 0:04:27][%cal Bd6d1,Bd1f1,Bf1f6,Bf6e6][%mdl 32]} h4 {[%emt 0:00:58]} 22. Bd3 {[%emt 0:00:40]} e5 {[%emt 0:02:20]} 23. Rdf1 {[%emt 0:02:18]} Bc6 {[%emt 0:06:24]} 24. Rhg1 {[%emt 0:14:02]} (24. Nd2 $5 {[%cal Rf1f6]}) 24... Rg8 {[%emt 0:12:05]} 25. Nd2 {[%emt 0:05:00]} Rhg7 {[%emt 0:04:01]} 26. Rxf6 {[%emt 0:11:23]} Rxg2 {[%emt 0:00:11]} 27. Rxg2 {[%emt 0:00:03]} Rxg2 {[%emt 0:00:05]} 28. Nf3 {[%emt 0:00:17][%csl LRe5,LRh4]} Rf2 {[%emt 0:08:16][%cal Oc6e4]} 29. Kc1 {[%emt 0:09:12] Hoping for Kd1.} Be8 {[%emt 0:14:10]} 30. Re6 {[%emt 0:03:45]} Kd7 {[%emt 0:00:18][%mdl 8192] [#] White stays focused until the end.} (30... Bd7 $14 31. Rxe7 Rxf3) 31. Rxa6 $1 $18 {[%emt 0:02:42]} Rxf3 {[%emt 0:02:36]} (31... Kd8 32. Nxe5) 32. Bxb5+ {[%emt 0:00:20]} Kd8 {[%emt 0:00:40]} 33. Ra8+ {[%emt 0:00:13][%mdl 64] Skewer} Nc8 {[%emt 0:00:04]} 34. Bxe8 {[%emt 0:00:06][%mdl 4096] Endgame KRB-KRN} Rf1+ {[%emt 0:00:17]} 35. Kd2 {[%emt 0:00:05]} Rf2+ {[%emt 0:00:17]} 36. Kd3 {[%emt 0:02:06]} Rxh2 {[%emt 0:00:23]} 37. Bg6 {[%emt 0:01:00] aiming for Bf5.} Kc7 {[%emt 0:06:20]} 38. Bf5 {[%emt 0:01:45] Prevents Rh3+.} Ne7 {[%emt 0:07:32]} (38... Nd6 39. Rh8 Rg2) 39. Ra7+ {[%emt 0:00:40]} Kd8 {[%emt 0:00:01]} 40. Ra8+ {[%emt 0:00:00]} Kc7 {[%emt 0:00:00]} 41. Rh8 {[%emt 0:03:28]} Nc6 {[%emt 0:00:36]} (41... Rf2 {was called for.} 42. Rxh4 Nc6) 42. a3 {[%emt 0:00:30][%cal Ba2a3,Ba3a4][%mdl 32]} Nd4 {[%emt 0:03:44]} 43. b4 {[%emt 0:02:36]} Rg2 {[%emt 0:11:05]} 44. a4 {[%emt 0:05:39]} Rg3+ {[%emt 0:06:38]} 45. Kc4 {[%emt 0:00:07]} Nxc2 {[%emt 0:00:10]} 46. Rxh4 {[%emt 0:00:39]} Na3+ {[%emt 0:02:33]} 47. Kd5 {[%emt 0:00:23]} Rb3 {[%emt 0:00:48]} 48. Rh7+ {[%emt 0:00:07]} (48. Rh3 $142 Rxh3 49. Bxh3) 48... Kb8 {[%emt 0:00:23]} 49. Kc5 {[%emt 0:00:42] White mates.} Rc3+ {[%emt 0:00:14]} 50. Kb6 {[%emt 0:01:12]} Nc4+ {[%emt 0:00:20]} 51. Ka6 {[%emt 0:00:04]} Nd6 {[%emt 0:00:24]} 52. b5 {[%emt 0:00:25][%cal Bb4b5,Bb5b6][%mdl 32]} Ra3 {[%emt 0:00:36]} 53. a5 {[%emt 0:00:42]} Rd3 {[%emt 0:02:07]} 54. b6 {[%emt 0:00:26]} Ne8 {[%emt 0:00:10]} 55. Rh8 {[%emt 0:00:19]} Rd8 {[%emt 0:00:04]} 56. Bg6 {[%emt 0:00:20] Weighted Error Value: White=0.24 (precise) /Black=0.42} 1-0

[Event "2nd Serbia Open Masters 2022"]
[Site "Novi Sad"]
[Date "2022.07.01"]
[Round "4.19"]
[White "Makridis, Dimitrios"]
[Black "Parkhov, Yair"]
[Result "1/2-1/2"]
[ECO "B40"]
[WhiteElo "2082"]
[BlackElo "2460"]
[Annotator "TA"]
[PlyCount "179"]
[EventDate "2022.06.28"]
[EventType "swiss"]
[EventCountry "SRB"]
[SourceTitle "playchess.com"]
[Source "ChessBase"]
[SourceQuality "1"]
[TimeControl "40/5400+30:900+30"]

{[%evp 9,179,6,10,-27,-28,-30,-13,-27,-16,-46,-43,-62,-56,-51,-57,-66,-68,-97,-75,-98,-63,-76,-68,-73,-53,-59,-54,-63,-54,-62,-60,-59,-55,-96,-46,-44,-35,-54,-37,-42,-39,-45,82,40,79,78,79,-16,0,0,14,-10,-3,-58,-29,-91,-62,-114,-114,-114,-101,-141,-136,-144,-133,-167,-167,-217,-221,-247,-71,-85,-97,-93,-84,-84,-90,-141,-134,-141,-141,-141,-132,-141,-129,-112,-110,-103,-87,-197,-125,-215,-123,-143,-89,-89,-78,-125,-82,-91,-82,-82,-82,-82,-25,-25,-25,-25,-9,-9,0,-25,-26,-45,-22,-61,-60,-606,-606,-566,-579,-463,-241,-230,-237,-167,-8,-8,-8,-8,0,0,0,0,0,0,0,0,0,0,0,0,0,0,0,0,0,0,0,0,0,0,0,0,0,0,0,0,0,0,0,0,0,0,0,0,0,0,0,0,0,0]} 1. e4 {[%emt 0:00:04]} c5 {[%emt 0:00:25]} 2. Nf3 {[%emt 0:00:08]} e6 {[%emt 0:00:05]} 3. d3 {[%emt 0:00:05]} Nc6 {[%emt 0:00:05]} 4. g3 {[%emt 0:00:18]} g6 {[%emt 0:00:10]} 5. Bg5 {[%emt 0:01:13]} Qb6 {[%emt 0:02:53]} 6. Nbd2 {[%emt 0:02:11] B40: Sicilian: 2...e6, Unusual lines.} Qxb2 {[%emt 0:01:04]} 7. Nc4 {[%emt 0:00:19]} Qg7 {[%emt 0:00:13]} 8. Rb1 {[%emt 0:10:08]} b6 {[%emt 0:00:21]} 9. Bg2 {[%emt 0:00:58]} Ba6 {[%emt 0:00:07]} 10. O-O {[%emt 0:03:18] [#]} Bxc4 $146 {[%emt 0:00:42]} ({Predecessor:} 10... f6 11. Bd2 Nh6 12. e5 Bxc4 13. exf6 Qxf6 14. dxc4 Bg7 15. Rb3 Nf5 16. Rd3 Qe7 17. Bg5 Qf7 18. Bf4 Rc8 19. Ng5 Qe7 20. Re1 h6 21. Ne4 {½-½ (21) Chadaev,N (2549)-Gajewski,G (2572) Kavala 2009}) 11. dxc4 {[%emt 0:00:01]} Be7 {[%emt 0:00:15]} 12. Bc1 {[%emt 0:09:27]} Rd8 {[%emt 0:01:41]} 13. e5 {[%emt 0:07:13]} h5 {[%emt 0:02:18]} 14. Bb2 {[%emt 0:01:33]} h4 {[%emt 0:09:19]} 15. Nd2 {[%emt 0:07:04]} hxg3 {[%emt 0:09:26]} 16. hxg3 {[%emt 0:00:27]} g5 {[%emt 0:19:07]} 17. Re1 {[%emt 0:07:08]} Nh6 {[%emt 0:06:22]} 18. Ne4 {[%emt 0:11:07]} Nf5 {[%emt 0:02:35]} 19. Nf6+ {[%emt 0:06:28]} Bxf6 {[%emt 0:00:17]} 20. exf6 {[%emt 0:00:02]} Qg6 {[%emt 0:03:34]} 21. Qd3 {[%emt 0:06:56]} g4 {[%emt 0:04:41]} (21... Qh7 $6 22. Rbd1 Na5 23. Kf1 $11) (21... Ncd4 $1 $17 22. Bxd4 Nxd4 23. Qxg6 fxg6) 22. Rbd1 $1 $15 {[%emt 0:03:37] Black must now prevent Bxc6.} Ncd4 {[%emt 0:13:01]} 23. c3 {[%emt 0:07:33]} Nf3+ {[%emt 0:00:05]} 24. Bxf3 {[%emt 0:00:02]} gxf3 {[%emt 0:00:07]} 25. Qxf3 {[%emt 0:00:21]} Qg5 {[%emt 0:04:35]} (25... Qxf6 26. g4 $16) (25... Rh3 $15 {keeps the upper hand.} 26. Qg2 Rh8) 26. Bc1 $1 $16 {[%emt 0:02:51]} Nh4 {[%emt 0:01:30]} (26... Qxf6 27. g4 $16) 27. Qe4 {[%emt 0:01:40]} (27. Bxg5 $2 Nxf3+ 28. Kg2 Nxg5 $19) 27... Qg6 {[%emt 0:02:56]} 28. Qxg6 {[%emt 0:01:58] 0x0.001b6a529635dp-1022s more active pieces.} (28. Bf4 $16) 28... Nxg6 {[%emt 0:01:11]} (28... Nf3+ {with more complications.} 29. Kf1 fxg6 30. Re4 Rh1+) 29. Rd6 {[%emt 0:03:23]} Rg8 {[%emt 0:02:09]} 30. Re4 {[%emt 0:01:03]} Rc8 {[%emt 0:00:47]} 31. a4 {[%emt 0:03:07]} ({Better is} 31. Re1 $11) 31... Kd8 $15 {[%emt 0:00:38]} 32. Rd3 {[%emt 0:01:17]} (32. Re1 $11 {keeps the balance.}) 32... Kc7 {[%emt 0:03:07]} 33. Bf4+ {[%emt 0:00:54]} (33. Bh6 $15) 33... Nxf4 $17 {[%emt 0:00:06]} 34. Rxf4 {[%emt 0:00:01][%mdl 4096] Endgame KRR-KRR} Rg6 {[%emt 0:00:56]} 35. Rdf3 {[%emt 0:01:27]} Rh8 {[%emt 0:01:52]} 36. Kf1 {[%emt 0:00:37]} d6 {[%emt 0:00:41]} 37. Ke2 {[%emt 0:01:09]} Kd7 {[%emt 0:00:21]} 38. Ke3 {[%emt 0:01:03]} (38. Rh4 $142 Rgh6 39. Rxh6 Rxh6 40. Ke3) 38... e5 $19 {[%emt 0:03:38]} 39. Rh4 {[%emt 0:01:12]} Rhg8 {[%emt 0:01:55]} (39... Rxh4 $19 40. gxh4 Rg4) 40. Rh7 {[%emt 0:00:00]} Ke6 {[%emt 0:00:00]} 41. Kd3 {[%emt 0:04:03]} Rg4 {[%emt 0:03:29] aiming for ...e4+.} (41... Rxf6 $6 42. Rxf6+ Kxf6 43. Rh6+ Rg6 44. Rh8 $15) 42. Re3 {[%emt 0:00:24] Inhibits e4+.} R8g6 {[%emt 0:00:10]} (42... Kxf6 43. Rf3+ Ke6 44. Rfxf7 $16) 43. Rh8 {[%emt 0:00:58]} ({White should try} 43. Re4) 43... Rxf6 $17 {[%emt 0:00:23]} ({Stronger than} 43... Kxf6 44. Re8 $15) 44. f4 {[%emt 0:01:51]} Rfg6 {[%emt 0:05:02]} 45. fxe5 {[%emt 0:01:12]} dxe5 {[%emt 0:05:21]} 46. Re8+ {[%emt 0:00:56]} Kf6 {[%emt 0:00:22]} 47. R3xe5 {[%emt 0:04:22]} Rxg3+ {[%emt 0:00:06]} 48. Kc2 {[%emt 0:00:08]} Rf3 {[%emt 0:02:12]} 49. Re3 {[%emt 0:02:54]} (49. Re1 $17 {was necessary.}) 49... Rg2+ {[%emt 0:00:08]} (49... Rxe3 $19 50. Rxe3 Rg4) 50. Kd3 {[%emt 0:00:47]} (50. Re2 $17 Rgg3 51. Kb2) 50... Rff2 {[%emt 0:03:33]} (50... Rxe3+ $1 $19 51. Rxe3 Ra2 52. Rf3+ Kg7 53. Rg3+ Kf8) 51. Ke4 {[%emt 0:02:04]} Rd2 {[%emt 0:02:10]} (51... Ra2 $142 $1 52. Rf3+ Kg7) 52. Rf3+ {[%emt 0:00:54]} Kg7 {[%emt 0:00:02]} 53. Ra8 {[%emt 0:00:20]} (53. a5 $142) 53... Rd7 {[%emt 0:00:33]} 54. a5 {[%emt 0:01:11]} bxa5 {[%emt 0:00:55]} 55. Rc8 {[%emt 0:00:11]} a4 {[%emt 0:02:13]} 56. Rxc5 {[%emt 0:00:20]} a3 {[%emt 0:00:10]} (56... Re2+ $17 57. Kf4 a3) 57. Ra5 $11 {[%emt 0:00:21]} a2 {[%emt 0:00:09]} 58. Rf1 {[%emt 0:00:16] Prevents Rd1.} Rg4+ {[%emt 0:01:17]} 59. Rf4 $1 {[%emt 0:01:01]} Rg2 {[%emt 0:00:29] Hoping for ...Rd1.} 60. Rf1 {[%emt 0:00:25] Inhibits Rd1.} Re2+ {[%emt 0:00:13]} 61. Kf5 {[%emt 0:00:32]} Rc2 {[%emt 0:00:23]} 62. Rg1+ {[%emt 0:00:40]} Kf8 {[%emt 0:00:01]} 63. Rc5 $2 {[%emt 0:01:01][%mdl 8192]} (63. Ra3 $15) 63... Rf2+ $1 $19 {[%emt 0:01:23]} 64. Ke4 {[%emt 0:00:36]} Re7+ {[%emt 0:00:40]} 65. Kd3 {[%emt 0:00:35]} f5 {[%emt 0:00:23]} (65... Rb2 $142 {Strongly threatening ...Rb1.} 66. Rb5 Ree2) 66. Ra5 {[%emt 0:00:27] [#]} f4 $1 {[%emt 0:00:19] Threatens to win with ...Re3+.} 67. c5 {[%emt 0:00:26] [#]} Re3+ $2 {[%emt 0:00:21]} (67... Rd7+ $1 $19 68. Kc4 f3) 68. Kc4 $11 {[%emt 0:00:18] The position is equal.} Rc2 {[%emt 0:00:11]} 69. Ra1 $1 {[%emt 0:00:38]} Rexc3+ {[%emt 0:00:55]} 70. Kd4 {[%emt 0:00:14]} Rc4+ {[%emt 0:00:12]} 71. Kd3 $1 {[%emt 0:00:44]} R2c3+ {[%emt 0:01:06]} 72. Kd2 {[%emt 0:00:11]} Rc2+ {[%emt 0:00:46]} 73. Kd3 {[%emt 0:00:07]} R2c3+ {[%emt 0:00:03]} 74. Kd2 {[%emt 0:00:05]} Kf7 {[%emt 0:00:29]} ({Much weaker is} 74... Rc2+ 75. Kd3 $17) 75. R1xa2 {[%emt 0:00:45]} Kf6 {[%emt 0:00:07]} 76. R2a4 {[%emt 0:00:52]} Kf5 {[%emt 0:00:43]} 77. Rxc4 {[%emt 0:00:24]} Rxc4 {[%emt 0:00:01] KR-KR} 78. Kd3 {[%emt 0:00:14]} Rc1 {[%emt 0:00:01]} 79. Kd2 {[%emt 0:00:09]} Rc4 {[%emt 0:01:40]} 80. Kd3 {[%emt 0:00:10]} Rc1 {[%emt 0:00:02]} 81. Kd2 {[%emt 0:00:13]} f3 {[%emt 0:00:56]} 82. Rxa7 {[%emt 0:00:11]} (82. Kxc1 $2 {loses.} f2 83. c6+ Ke6 $19) 82... Rxc5 {[%emt 0:00:17] ...Re5 is the strong threat.} 83. Ke3 {[%emt 0:00:05]} Rc3+ {[%emt 0:00:15]} 84. Kf2 {[%emt 0:00:01]} Rb3 {[%emt 0:00:23]} 85. Rf7+ {[%emt 0:00:11]} Ke4 {[%emt 0:00:05]} 86. Re7+ {[%emt 0:00:06]} Kd4 {[%emt 0:00:40]} 87. Rf7 {[%emt 0:00:10]} Ke4 {[%emt 0:00:05]} 88. Re7+ {[%emt 0:00:04]} Kd4 {[%emt 0:00:04]} 89. Rf7 {[%emt 0:00:03]} Rb1 {[%emt 0:00:06]} 90. Rxf3 {[%emt 0:00:06] Black had all chances to win.  Weighted Error Value: White=0.18 (very precise) /Black=0.22 (precise)} 1/2-1/2

[Event "2nd Serbia Open Masters 2022"]
[Site "Novi Sad"]
[Date "2022.07.01"]
[Round "4.20"]
[White "Pranav Anand"]
[Black "Fataliyeva, Ulviyya"]
[Result "1/2-1/2"]
[ECO "D12"]
[WhiteElo "2479"]
[BlackElo "2348"]
[Annotator "TA"]
[PlyCount "147"]
[EventDate "2022.06.28"]
[EventType "swiss"]
[EventCountry "SRB"]
[SourceTitle "playchess.com"]
[Source "ChessBase"]
[SourceQuality "1"]
[TimeControl "40/5400+30:900+30"]

{[%evp 15,147,13,19,21,19,19,23,26,20,7,0,9,16,0,0,-15,0,-28,-26,-25,-33,-99,-23,-87,-7,-47,0,0,-3,0,0,0,0,0,0,0,0,-18,-14,-17,-11,-34,-11,-71,-23,-33,-20,-49,-49,-54,-49,-63,-49,-49,-49,-49,-51,-52,-45,-44,-48,-83,-84,-91,-91,-96,-49,-110,-57,-473,-452,-29975,-29976,-29973,-401,-386,-393,-382,-379,-375,-371,-375,-355,-338,-322,-318,-233,-416,-415,-419,-354,-433,0,-416,-406,-380,0,-333,-280,-442,-379,-641,-538,-266,-231,-221,-217,-220,-217,-194,-202,-189,-179,-164,0,0,0,0,0,0,0,0,0,0,0,0,0,0,0,0,0,0,0,-25]} 1. d4 {[%emt 0:00:06]} d5 {[%emt 0:05:22]} 2. c4 {[%emt 0:00:43]} c6 {[%emt 0:00:13]} 3. Nf3 {[%emt 0:00:06]} Nf6 {[%emt 0:00:05]} 4. e3 {[%emt 0:00:03]} Bf5 {[%emt 0:00:04]} 5. Nc3 {[%emt 0:00:05]} e6 {[%emt 0:00:04]} 6. Nh4 {[%emt 0:00:03]} Be4 {[%emt 0:00:04]} 7. f3 {[%emt 0:00:04]} Bg6 {[%emt 0:00:03]} 8. Qb3 {[%emt 0:00:23]} Qc7 {[%emt 0:00:08]} 9. Bd2 {[%emt 0:00:06] D12: Slav Defence: 3 Nf3 Nf6 4 e3 Bf5.} Be7 {[%emt 0:00:06]} 10. Nxg6 {[%emt 0:00:04]} hxg6 {[%emt 0:00:05]} 11. O-O-O {[%emt 0:00:04] White has an edge.} dxc4 {[%emt 0:00:25]} 12. Qxc4 {[%emt 0:00:05]} a6 {[%emt 0:00:06]} 13. Kb1 {[%emt 0:02:28]} b5 {[%emt 0:00:42] [#]} 14. Qb3 $146 {[%emt 0:00:42]} ({Predecessor:} 14. Qe2 Nbd7 15. g4 Nb6 16. Qg2 c5 17. dxc5 Bxc5 18. Rc1 Qa7 19. e4 Rc8 20. h4 {½-½ (135) Cheparinov,I (2672)-Durarbayli,V (2628) Terme Catez 2022}) 14... c5 {[%emt 0:01:11]} 15. dxc5 {[%emt 0:01:03]} Nbd7 {[%emt 0:02:18]} 16. Qc2 {[%emt 0:09:12]} Nxc5 {[%emt 0:05:50]} 17. g4 {[%emt 0:12:48]} Rc8 {[%emt 0:01:42]} (17... Rxh2 18. Rxh2 Qxh2 19. g5 $11) 18. Rc1 {[%emt 0:13:41]} (18. g5 $15 Nfd7 19. h4) 18... Qb8 {[%emt 0:12:19]} (18... Rxh2 $6 19. Rxh2 Qxh2 20. Ne2 $11) (18... O-O $17 19. g5 Nfd7) 19. h4 {[%emt 0:09:35]} (19. g5 $11 Nfd7 20. h4 (20. Ne4 O-O $15)) 19... Nfd7 {[%emt 0:03:43]} ({Black should try} 19... O-O $17 {White must now prevent ...b4.} 20. h5 g5) 20. Ne4 {[%emt 0:02:26] b4 is the strong threat.} Nb6 {[%emt 0:07:49]} (20... O-O $15) 21. Nxc5 {[%emt 0:04:11]} Rxc5 {[%emt 0:01:11]} 22. Qe4 {[%emt 0:00:26]} Rxc1+ {[%emt 0:02:43]} 23. Bxc1 {[%emt 0:00:15]} Rxh4 {[%emt 0:03:44]} 24. Qc6+ {[%emt 0:03:45]} Kf8 {[%emt 0:02:23]} 25. Rxh4 {[%emt 0:04:17]} Bxh4 {[%emt 0:00:13]} 26. f4 {[%emt 0:04:33]} Be7 {[%emt 0:04:47]} 27. g5 {[%emt 0:00:46]} Bd6 {[%emt 0:07:25]} 28. Qh1 {[%emt 0:08:03]} Kg8 {[%emt 0:02:02] Prevents Qh8+.} 29. Bg2 {[%emt 0:00:04]} (29. Qc6 $11 {remains equal.}) 29... Qc7 {[%emt 0:03:48]} (29... Bc5 $17 {Strongly threatening ...Nc4.} 30. Bf1 Nd5) 30. Bb7 $11 {[%emt 0:00:43]} a5 {[%emt 0:04:00]} 31. Bc6 {[%emt 0:01:01]} b4 {[%emt 0:00:51]} 32. Qe4 {[%emt 0:04:46]} Bc5 {[%emt 0:00:41]} 33. b3 {[%emt 0:02:24]} Qd6 {[%emt 0:04:02]} 34. Kc2 {[%emt 0:00:09]} Kf8 {[%emt 0:03:18]} 35. Bb7 {[%emt 0:01:47]} Nd5 {[%emt 0:04:46]} 36. Bxd5 {[%emt 0:00:20]} exd5 $15 {[%emt 0:01:30][%mdl 4096] Endgame KQB-KQB} 37. Qd3 {[%emt 0:00:19]} Qc6 {[%emt 0:03:38]} 38. Kd1 {[%emt 0:00:46]} Qe6 {[%emt 0:02:54]} 39. Qb5 {[%emt 0:02:11]} Bb6 $36 {[%emt 0:00:10][%mdl 2048] Keeping White busy.} (39... Bxe3 $6 40. Qb8+ Ke7 41. Qc7+ (41. Qb7+ Ke8 $11) 41... Ke8 42. Qb8+ Ke7 43. Qc7+ (43. Qb7+ Kf8 $11) 43... Ke8 44. Qb8+ Ke7 $11) 40. Qa6 {[%emt 0:00:00]} Kg8 {[%emt 0:00:00]} (40... f6 $1 $17 41. Qa8+ Ke7 42. Qb7+ Ke8 43. gxf6 gxf6) 41. Bd2 {[%emt 0:12:25]} (41. Qb7 $15) 41... Kh7 {[%emt 0:05:46]} (41... Qc6 $1 $17 42. Bc1 Kh7) 42. Kc1 $2 {[%emt 0:01:32][%mdl 8192]} (42. Qb7 $1 $15) 42... Bxe3 $19 {[%emt 0:06:48]} 43. Qxa5 {[%emt 0:02:28]} (43. Qf1 $19 Kg8 44. Qf3 Qc6+ 45. Kd1) 43... Qc6+ {[%emt 0:01:22]} 44. Kd1 {[%emt 0:00:45]} Bxd2 {[%emt 0:00:54]} (44... d4 $142 45. Bxe3 Qf3+ 46. Kc2 dxe3 47. Qxb4 Qf2+ 48. Kc3 e2 49. Qe7 e1=Q+ 50. Qxe1 Qxe1+ 51. Kd3 Qg3+ 52. Ke4 Qg2+ 53. Kd3 Qg3+ 54. Ke4 Qg2+ 55. Kd3 Qg3+) 45. Kxd2 {[%emt 0:00:01] KQ-KQ} Qc3+ {[%emt 0:00:08]} 46. Ke2 {[%emt 0:02:24]} Qc2+ {[%emt 0:00:26]} 47. Ke1 {[%emt 0:01:32]} Qe4+ {[%emt 0:02:32]} 48. Kd1 {[%emt 0:00:01]} Qf3+ {[%emt 0:06:53]} 49. Ke1 {[%emt 0:00:44]} Qe3+ {[%emt 0:00:03]} (49... Qxf4 50. Qxd5 Qh4+ 51. Kd2 $17) 50. Kd1 {[%emt 0:00:08]} Qe4 {[%emt 0:00:05]} (50... Qxf4 51. Qxd5 Qf1+ 52. Kd2 $19) 51. Qa8 $2 {[%emt 0:02:22]} (51. Qc5 {was forced.}) 51... Qh1+ {[%emt 0:00:19]} 52. Kd2 {[%emt 0:01:00]} Qh2+ {[%emt 0:01:07]} 53. Kd1 {[%emt 0:02:31]} Qh1+ {[%emt 0:03:36]} 54. Kd2 $1 {[%emt 0:00:23]} Qg2+ {[%emt 0:00:08]} 55. Ke1 {[%emt 0:00:18]} Qe4+ {[%emt 0:00:10]} 56. Kd1 {[%emt 0:00:05]} Qd4+ {[%emt 0:00:09]} (56... Qxf4 57. Qxd5 Qf1+ 58. Kd2 $19) 57. Ke1 {[%emt 0:01:43]} (57. Ke2 $142) 57... f6 {[%emt 0:00:18]} 58. Qa5 $2 {[%emt 0:04:51]} (58. gxf6 gxf6 59. Ke2) 58... Qc3+ {[%emt 0:05:12]} 59. Ke2 {[%emt 0:01:02]} d4 {[%emt 0:00:07] ( -> ...d3+)} 60. Qd5 {[%emt 0:00:12]} Qc2+ {[%emt 0:01:02]} 61. Ke1 {[%emt 0:00:01]} Qc1+ {[%emt 0:01:06]} (61... Qxa2 62. Qh1+ Kg8 63. Qd5+ Kh8 64. Qh1+ Kg8 65. Qd5+ Kh8 66. Qh1+ Kg8 $11) 62. Ke2 {[%emt 0:00:01]} Qe3+ {[%emt 0:00:07]} ({Weaker is} 62... Qxf4 63. Qh1+ Kg8 64. Qd5+ Kh8 65. Qh1+ Kg8 66. Qd5+ Kh8 67. Qh1+ Kg8 $11) 63. Kd1 {[%emt 0:00:03] [#]} Qg1+ $1 {[%emt 0:00:17]} ({Inferior is} 63... Qxf4 64. Qh1+ Kg8 65. Qd5+ Kh8 66. Qh1+ Kg8 67. Qd5+ Kh8 68. Qh1+ Kg8 $11) 64. Ke2 {[%emt 0:01:02] [#]} fxg5 $2 {[%emt 0:01:43]} ({And not} 64... Qe3+ 65. Kd1 $17) ({Better is} 64... f5 $1 $19 {aiming for ...Qe3+.} 65. Kd3 Qf1+ 66. Kxd4 Qxf4+ 67. Kc5 Qxg5 68. Kxb4 Qf4+ 69. Kc3 g5 70. Qh1+ Kg6 71. Qc6+ Kh7 72. Qh1+ Kg6 73. Qc6+ Kh5 74. Qh1+ Kg4 75. Qg2+ Kh4 76. Qh1+ Kg4 77. Qg2+ Qg3+ 78. Qxg3+ Kxg3) 65. fxg5 $11 {[%emt 0:00:19] The position is equal.} Qe3+ {[%emt 0:00:30]} 66. Kd1 {[%emt 0:00:33]} Qd3+ {[%emt 0:00:22]} 67. Ke1 {[%emt 0:00:13]} Qb1+ {[%emt 0:00:31]} 68. Kd2 {[%emt 0:00:21]} Qb2+ {[%emt 0:00:23]} 69. Kd1 {[%emt 0:00:37]} Qa1+ {[%emt 0:00:22]} 70. Ke2 {[%emt 0:00:45]} Qg1 {[%emt 0:00:09]} 71. Kd3 {[%emt 0:01:04]} Qe3+ {[%emt 0:00:22]} 72. Kc4 {[%emt 0:00:05]} Qc3+ {[%emt 0:00:38]} 73. Kb5 {[%emt 0:00:01]} d3 {[%emt 0:00:56]} 74. Qh1+ {[%emt 0:00:00] And White is the lucky defender.  Weighted Error Value: White=0.49/Black=0.41} 1/2-1/2